bitfinex/quotes_ETHUSD_20250404
["timestamp","ask_amount","ask_price","bid_price","bid_amount"]
[1743744256555,6.01,1796.9,1796.8,0.12803051]
[1743744256844,11.57513,1796.9,1796.8,0.12803051]
[1743744257011,6.01,1796.9,1796.8,0.12803051]
[1743744257422,11.57513,1796.9,1796.8,0.12803051]
[1743744260418,19.8016873,1796.9,1796.8,0.12803051]
[1743744262245,17.7876893,1796.9,1796.8,0.12803051]
[1743744263017,17.1471893,1796.9,1796.8,0.12803051]
[1743744263628,14.57513,1796.9,1796.8,0.12803051]
[1743744265552,17.1471893,1796.9,1796.8,0.12803051]
[1743744270353,6.01,1796.9,1796.8,0.12803051]
[1743744270555,5.56331,1797.5,1797.1,5.56452]
[1743744270556,5.73761851,1797.5,1797.1,5.56452]
[1743744270757,5.09711851,1797.5,1797.2,11.74481626]
[1743744271058,5.09711851,1797.5,1797.2,17.30882626]
[1743744271357,5.09711851,1797.5,1797.2,17.30875626]
[1743744271764,5.09711851,1797.5,1797.2,11.74474626]
[1743744272430,5.09711851,1797.5,1797.2,17.30877626]
[1743744272630,5.09711851,1797.5,1797.2,19.03965389]
[1743744273165,5.09711851,1797.5,1797.2,13.47562389]
[1743744273733,5.09711851,1797.7,1797.5,6.32915]
[1743744274960,5.09711851,1797.7,1797.5,0.7661]
[1743744275850,10.65978851,1797.7,1797.4,6.32956]
[1743744276049,3.6405,1797.6,1797.2,11.63926]
[1743744276256,8.56312,1797.6,1797.2,11.63926]
[1743744276568,8.56312,1797.6,1797.2,11.79540903]
[1743744276730,14.12629,1797.6,1797.2,11.79540903]
[1743744276935,8.56312,1797.6,1797.3,5.3]
[1743744277463,5.56328,1797.5,1797.3,5.3]
[1743744278033,14.12635,1797.6,1797.3,5.3]
[1743744278338,8.56312,1797.6,1797.3,5.3]
[1743744278560,14.12629,1797.6,1797.3,5.3]
[1743744279667,5.56329,1797.5,1797.3,5.3]
[1743744280265,5.56329,1797.5,1797.1,48.98436]
[1743744280453,5.56401,1797.3,1797.2,5.297]
[1743744280658,5.56401,1797.3,1797.2,5.45289651]
[1743744280859,5.56401,1797.3,1797.2,5.297]
[1743744281162,5.56382,1797.4,1797.2,5.297]
[1743744281970,11.12768,1797.4,1797.1,43.42]
[1743744282172,11.12768,1797.4,1797.1,48.716]
[1743744282669,5.56382,1797.4,1797.1,48.716]
[1743744282869,11.1276,1797.4,1797.1,48.716]
[1743744283671,5.56396,1797.3,1797.1,48.716]
[1743744283837,5.56396,1797.3,1797.1,5.296]
[1743744284039,5.56396,1797.3,1797.0,5.293]
[1743744284040,5.56434,1797.2,1797.0,5.293]
[1743744284666,5.56434,1797.2,1797.0,6.454059]
[1743744284970,8.5639,1797.3,1797.0,6.454059]
[1743744285170,14.12804,1797.3,1797.0,6.454059]
[1743744285384,14.12804,1797.3,1797.0,5.293]
[1743744285385,13.66101851,1797.3,1797.0,5.293]
[1743744285670,5.56425,1797.2,1797.0,5.293]
[1743744285976,11.76915,1797.2,1797.0,5.293]
[1743744286282,11.76915,1797.2,1796.9,0.7525]
[1743744286283,5.56452,1797.1,1796.9,5.291]
[1743744286445,11.12922,1797.1,1796.9,5.291]
[1743744286643,3.2125593,1797.2,1796.8,5.291]
[1743744286644,5.56513,1796.9,1796.8,5.291]
[1743744287394,13.7022393,1797.0,1796.8,5.291]
[1743744287578,8.1371193,1797.0,1796.8,5.291]
[1743744287876,13.7021593,1797.0,1796.8,5.291]
[1743744288368,5.56513,1796.9,1796.8,5.291]
[1743744288677,8.1370993,1797.0,1796.8,5.291]
[1743744289280,13.7021393,1797.0,1796.8,5.291]
[1743744289893,13.7021393,1797.0,1796.7,43.411]
[1743744290064,13.7021393,1797.0,1796.7,48.7]
[1743744290264,5.56504,1797.0,1796.7,48.7]
[1743744290594,5.56504,1797.0,1796.7,54.26574]
[1743744290947,3.0,1797.2,1796.9,5.56511]
[1743744291144,10.66104851,1797.3,1797.0,5.56478]
[1743744291383,10.66104851,1797.3,1797.0,5.540031]
[1743744291850,10.66104851,1797.3,1797.0,6.6505451]
[1743744292049,5.09711851,1797.3,1797.1,6.0936]
[1743744292666,5.09711851,1797.3,1797.1,11.65807]
[1743744292884,5.09711851,1797.3,1797.1,11.65811]
[1743744293189,5.09711851,1797.3,1797.1,6.0936]
[1743744293489,5.09711851,1797.3,1797.1,7.36801451]
[1743744293657,5.09711851,1797.3,1797.1,12.93252451]
[1743744294287,5.09711851,1797.3,1797.1,18.49693451]
[1743744294591,5.09711851,1797.3,1797.1,12.93242451]
[1743744296367,5.09711851,1797.6,1797.3,0.7918]
[1743744296574,5.56287,1797.7,1797.3,6.41117833]
[1743744296772,11.12573,1797.7,1797.3,6.35554]
[1743744296993,5.56304,1797.6,1797.3,6.35554]
[1743744297192,5.56283,1797.7,1797.3,6.35554]
[1743744297392,11.1257,1797.7,1797.3,7.547512]
[1743744297598,5.56283,1797.7,1797.3,7.547512]
[1743744297774,11.12569,1797.7,1797.3,7.547512]
[1743744297975,5.56301,1797.6,1797.3,7.547512]
[1743744299190,5.56301,1797.6,1797.3,0.7918]
[1743744299390,0.6405,1797.5,1797.1,44.2058]
[1743744299595,5.5639,1797.3,1797.2,5.293]
[1743744302398,13.23296781,1797.4,1797.2,5.293]
[1743744303671,5.5639,1797.3,1797.2,5.293]
[1743744305169,7.66917781,1797.4,1797.2,5.293]
[1743744305370,5.09711851,1797.4,1797.3,5.5639]
[1743744305801,10.65947851,1797.8,1797.4,6.35518]
[1743744306000,10.65947851,1797.8,1797.5,5.56327]
[1743744306300,10.65947851,1797.8,1797.4,11.9186]
[1743744306801,10.65947851,1797.8,1797.4,6.35518]
[1743744307205,10.65947851,1797.8,1797.4,7.547086]
[1743744307712,16.22201851,1797.8,1797.4,7.547086]
[1743744307869,5.56266,1797.7,1797.4,7.547086]
[1743744308296,10.65947851,1797.8,1797.4,13.110506]
[1743744308697,10.65947851,1797.8,1797.4,7.547086]
[1743744308903,16.22201851,1797.8,1797.4,7.547086]
[1743744309107,10.65947851,1797.8,1797.4,7.547086]
[1743744309604,10.65947851,1797.8,1797.4,13.110506]
[1743744309772,10.65947851,1797.8,1797.4,7.547086]
[1743744309971,16.22203851,1797.8,1797.4,7.547086]
[1743744310173,16.22204851,1797.8,1797.4,7.547086]
[1743744310372,5.56269,1797.7,1797.4,7.547086]
[1743744311494,10.65947851,1797.8,1797.4,7.547086]
[1743744313605,10.65947851,1797.8,1797.5,5.56326]
[1743744313813,11.8246293,1797.9,1797.5,5.56326]
[1743744313814,11.1841293,1797.9,1797.6,5.287]
[1743744313982,8.61207,1797.9,1797.7,0.8019]
[1743744314698,3.05,1797.9,1797.7,0.8019]
[1743744314995,8.61206,1797.9,1797.7,0.8019]
[1743744315193,8.61206,1797.9,1797.8,5.56235]
[1743744315194,0.05,1797.9,1797.8,5.56235]
[1743744315373,0.05,1797.9,1797.8,7.556932]
[1743744315571,0.05,1797.9,1797.8,8.106932]
[1743744316005,0.05,1797.9,1797.8,8.16254735]
[1743744316387,0.05,1797.9,1797.8,8.106932]
[1743744317899,0.05,1797.9,1797.8,8.16254429]
[1743744318102,10.65686851,1798.7,1797.9,0.55]
[1743744318303,5.55998,1798.6,1798.2,5.56095]
[1743744318478,5.55998,1798.6,1798.3,6.1029]
[1743744318885,11.11954,1798.7,1798.3,11.6637]
[1743744319292,5.5597,1798.7,1798.3,11.66358]
[1743744319507,5.5597,1798.7,1798.3,18.445538]
[1743744319882,11.11949,1798.7,1798.3,12.884858]
[1743744320103,5.5597,1798.7,1798.3,12.884858]
[1743744320418,5.56025,1798.5,1798.3,6.1029]
[1743744322012,8.1320393,1798.6,1798.3,6.1029]
[1743744322684,5.56019,1798.5,1798.3,6.1029]
[1743744322885,5.56049,1798.4,1798.1,6.31464]
[1743744323100,5.56049,1798.4,1798.2,5.307]
[1743744323785,5.5608,1798.3,1798.2,5.307]
[1743744325102,8.1326993,1798.4,1798.2,5.307]
[1743744325917,10.65730851,1798.5,1798.2,5.307]
[1743744326106,10.65730851,1798.5,1798.2,11.954907]
[1743744326506,5.09711851,1798.5,1798.2,11.954907]
[1743744326714,5.09711851,1798.5,1798.2,17.515837]
[1743744326898,5.09711851,1798.5,1798.3,0.7533]
[1743744327086,10.65732851,1798.5,1798.3,0.7533]
[1743744329108,10.65732851,1798.5,1798.2,7.147127]
[1743744329303,10.65732851,1798.5,1798.2,6.0603]
[1743744329504,5.56051,1798.4,1798.2,5.307]
[1743744330005,5.5608,1798.3,1798.2,5.294]
[1743744330198,2.5720593,1798.4,1798.2,5.294]
[1743744330602,5.09711851,1798.5,1798.3,0.7533]
[1743744331821,10.65731851,1798.5,1798.3,0.7533]
[1743744333925,16.21769851,1798.5,1798.3,0.7533]
[1743744334111,10.65731851,1798.5,1798.3,0.7533]
[1743744334309,10.65731851,1798.5,1798.2,5.294]
[1743744334616,16.21770851,1798.5,1798.2,6.0473]
[1743744334919,5.56051,1798.4,1798.2,6.0473]
[1743744335122,9.42544066,1798.4,1797.8,50.25461]
[1743744335324,5.56156,1798.1,1797.9,5.284]
[1743744335826,8.1332193,1798.2,1797.9,5.284]
[1743744336324,2.5720593,1798.2,1797.9,16.40786]
[1743744336703,13.6945393,1798.2,1797.9,5.284]
[1743744336903,8.1331893,1798.2,1797.9,10.84602]
[1743744337099,8.1331893,1798.2,1797.9,5.56202]
[1743744337303,8.1331893,1798.2,1798.0,5.284]
[1743744338016,8.1331893,1798.2,1798.0,5.283]
[1743744338624,13.6945893,1798.2,1798.0,5.283]
[1743744339422,8.1331893,1798.2,1798.0,5.283]
[1743744339724,5.56113,1798.2,1798.0,5.283]
[1743744340234,5.56083,1798.3,1798.0,5.283]
[1743744340535,5.56083,1798.3,1798.0,10.84469]
[1743744341025,11.12184,1798.3,1798.0,5.283]
[1743744341194,5.56083,1798.3,1798.0,5.283]
[1743744341922,5.56114,1798.2,1798.0,5.283]
[1743744342423,5.56142,1798.1,1798.0,5.283]
[1743744342821,8.1331993,1798.2,1798.0,5.283]
[1743744343325,5.56142,1798.1,1798.0,5.283]
[1743744343526,5.56142,1798.1,1797.8,6.31546]
[1743744343527,5.56178,1798.0,1797.8,0.7533]
[1743744343696,11.12371,1798.0,1797.9,5.277]
[1743744344024,5.56236,1797.8,1797.6,44.1685]
[1743744344321,5.56155,1798.1,1797.8,5.277]
[1743744344629,5.56155,1798.1,1797.9,0.7795]
[1743744344924,5.56081,1798.3,1797.9,0.7795]
[1743744345236,5.56081,1798.3,1797.9,11.90329]
[1743744345403,11.12184,1798.3,1797.9,6.34136]
[1743744345726,5.56081,1798.3,1797.9,11.90325]
[1743744346234,5.56081,1798.3,1797.9,6.34136]
[1743744346727,5.56081,1798.3,1797.9,11.90323]
[1743744346933,11.12184,1798.3,1797.9,8.059383]
[1743744347133,5.56081,1798.3,1797.9,8.059383]
[1743744347332,5.56081,1798.3,1797.9,13.621273]
[1743744347833,5.56081,1798.3,1797.9,8.059383]
[1743744348038,5.56081,1798.3,1797.9,6.34136]
[1743744348255,5.56115,1798.2,1797.9,6.34136]
[1743744348410,5.56081,1798.3,1797.9,11.90329]
[1743744348942,5.56081,1798.3,1797.9,11.90326]
[1743744349253,5.56158,1798.1,1797.9,0.7795]
[1743744349466,5.56158,1798.1,1798.0,5.286]
[1743744350336,5.56158,1798.1,1797.6,44.1685]
[1743744350337,3.0,1798.0,1797.6,44.1685]
[1743744350513,5.56223,1797.9,1797.7,5.286]
[1743744350918,11.12452,1797.9,1797.7,5.286]
[1743744351319,5.56235,1797.8,1797.7,5.286]
[1743744352411,8.1344093,1797.8,1797.7,5.286]
[1743744352614,7.51077578,1797.8,1797.7,5.286]
[1743744352811,5.56235,1797.8,1797.7,5.286]
[1743744353010,10.65934851,1797.9,1797.7,5.286]
[1743744353439,5.09711851,1797.9,1797.7,6.0392]
[1743744354337,5.09711851,1797.9,1797.7,11.60186]
[1743744355108,5.09711851,1797.9,1797.7,6.0392]
[1743744356528,5.09711851,1797.9,1797.7,11.60183]
[1743744356842,5.09711851,1797.9,1797.7,11.60161]
[1743744357014,5.09711851,1797.9,1797.8,5.56235]
[1743744357212,8.1331793,1798.2,1797.8,5.56235]
[1743744357417,13.6945193,1798.2,1797.9,0.7593]
[1743744358139,8.1331793,1798.2,1797.9,0.7593]
[1743744358549,8.1331793,1798.2,1797.9,1.947672]
[1743744358713,8.1331793,1798.2,1797.9,7.509642]
[1743744359365,3.0,1798.3,1797.9,7.509642]
[1743744359366,8.56101,1798.3,1797.9,7.509642]
[1743744359516,5.56101,1798.3,1797.9,7.509592]
[1743744359849,5.56101,1798.3,1798.0,5.56162]
[1743744360047,5.56101,1798.3,1798.1,5.289]
[1743744360869,11.12211,1798.3,1798.1,5.289]
[1743744361046,5.56111,1798.2,1798.1,5.289]
[1743744361686,8.1330693,1798.3,1798.1,5.289]
[1743744362648,8.1330593,1798.3,1798.1,5.289]
[1743744362848,2.5720593,1798.3,1798.1,5.289]
[1743744363054,2.5720593,1798.3,1798.1,6.449992]
[1743744363252,10.65761851,1798.4,1798.1,6.449992]
[1743744363944,5.5608,1798.3,1798.1,6.449992]
[1743744365464,10.65761851,1798.4,1798.1,6.449992]
[1743744365677,5.56092,1798.3,1798.1,6.449992]
[1743744365874,5.56111,1798.2,1797.8,0.7593]
[1743744366078,6.2625593,1798.3,1797.9,5.286]
[1743744366079,5.56179,1798.0,1797.9,5.286]
[1743744366776,5.56216,1797.9,1797.8,5.287]
[1743744367478,2.5720593,1797.9,1797.6,44.1483]
[1743744367681,5.56245,1797.8,1797.7,5.287]
[1743744368446,8.1341093,1797.9,1797.7,5.287]
[1743744368649,5.56235,1797.8,1797.7,5.287]
[1743744368962,8.1334893,1798.1,1797.7,5.287]
[1743744369162,5.56143,1798.1,1797.9,0.8203]
[1743744369367,3.0,1798.1,1797.9,1.458552]
[1743744369881,3.0,1798.1,1797.9,7.020472]
[1743744370249,3.0,1798.1,1797.9,1.458552]
[1743744371543,8.56142,1798.1,1797.9,1.458552]
[1743744371749,8.56142,1798.1,1797.9,0.8203]
[1743744373475,5.56173,1798.0,1797.7,0.55]
[1743744373645,5.56173,1798.0,1797.8,5.287]
[1743744374277,2.5720593,1798.0,1797.8,5.288]
[1743744374448,5.56216,1797.9,1797.5,49.77753]
[1743744374643,2.5720593,1797.8,1797.5,44.2143]
[1743744374883,5.56294,1797.7,1797.5,48.686]
[1743744375052,11.12588,1797.7,1797.5,48.686]
[1743744375252,5.56297,1797.6,1797.5,48.686]
[1743744375550,5.56289,1797.7,1797.5,48.686]
[1743744375778,11.12581,1797.7,1797.5,48.686]
[1743744375983,5.56289,1797.7,1797.5,48.686]
[1743744376178,5.56266,1797.7,1797.5,48.686]
[1743744377480,5.56297,1797.6,1797.5,43.394]
[1743744377651,5.56297,1797.6,1797.5,48.681]
[1743744379207,5.56266,1797.7,1797.5,48.681]
[1743744379578,5.56297,1797.6,1797.5,48.681]
[1743744381290,5.56266,1797.7,1797.5,48.681]
[1743744381692,11.12552,1797.7,1797.5,48.681]
[1743744381880,11.12551,1797.7,1797.5,48.681]
[1743744382264,5.56214,1797.9,1797.5,55.07186]
[1743744382666,5.56237,1797.8,1797.5,49.5087]
[1743744382870,5.56269,1797.7,1797.5,49.5087]
[1743744383493,11.12556,1797.7,1797.5,48.681]
[1743744383694,5.56269,1797.7,1797.5,48.681]
[1743744383994,11.12557,1797.7,1797.5,48.681]
[1743744384173,5.56269,1797.7,1797.5,48.681]
[1743744384792,11.12553,1797.7,1797.5,48.681]
[1743744384994,5.56269,1797.7,1797.5,48.681]
[1743744386463,8.1344093,1797.8,1797.5,48.681]
[1743744386662,13.6969493,1797.8,1797.5,48.681]
[1743744386890,8.1344093,1797.8,1797.5,48.681]
[1743744387108,8.1344093,1797.8,1797.5,54.24419]
[1743744387264,13.6969493,1797.8,1797.5,48.681]
[1743744387586,5.56279,1797.7,1797.5,48.681]
[1743744387968,11.12563,1797.7,1797.5,48.681]
[1743744388168,5.56279,1797.7,1797.5,48.681]
[1743744389314,11.1257,1797.7,1797.5,48.681]
[1743744389797,5.56279,1797.7,1797.5,48.681]
[1743744389995,8.8249493,1797.8,1797.5,48.681]
[1743744389996,14.3874893,1797.8,1797.5,48.681]
[1743744390411,14.3874893,1797.8,1797.5,5.287]
[1743744390890,5.56277,1797.7,1797.5,5.287]
[1743744392765,2.5720593,1797.8,1797.5,5.287]
[1743744393095,5.56221,1797.9,1797.6,0.8122]
[1743744393600,8.1342693,1797.9,1797.6,0.8122]
[1743744393968,5.56235,1797.8,1797.5,5.287]
[1743744394173,11.12493,1797.8,1797.5,5.287]
[1743744394372,5.56266,1797.7,1797.5,5.287]
[1743744395175,5.56266,1797.7,1797.5,6.453263]
[1743744395592,5.56235,1797.8,1797.5,6.453263]
[1743744395791,5.56235,1797.8,1797.5,5.287]
[1743744395970,11.12489,1797.8,1797.5,5.287]
[1743744397008,5.56266,1797.7,1797.5,5.287]
[1743744398002,11.12558,1797.7,1797.5,5.287]
[1743744398397,8.8252193,1797.7,1797.5,5.287]
[1743744402310,3.2625593,1797.7,1797.5,10.85026]
[1743744402480,8.1341293,1797.9,1797.6,0.7948]
[1743744402682,5.09711851,1798.0,1797.7,5.56254]
[1743744402887,8.56153,1798.1,1797.7,11.12506]
[1743744403206,5.56114,1798.2,1797.9,0.7948]
[1743744403620,5.56114,1798.2,1797.9,11.63274]
[1743744404313,13.92051781,1798.3,1797.9,11.63274]
[1743744404507,13.23001781,1798.3,1798.0,5.56172]
[1743744405306,13.23001781,1798.3,1797.9,11.63281]
[1743744405505,13.23001781,1798.3,1797.9,13.4635736]
[1743744405721,13.23001781,1798.3,1797.9,13.4634736]
[1743744406598,5.56113,1798.2,1797.9,13.4634736]
[1743744406786,5.56113,1798.2,1797.9,7.9015636]
[1743744407818,5.56113,1798.2,1797.9,13.4635836]
[1743744408320,11.12246,1798.2,1797.9,7.9015636]
[1743744408484,8.1335493,1798.1,1797.9,6.0708]
[1743744408889,2.5720593,1798.1,1797.9,6.0708]
[1743744410088,8.1334893,1798.1,1797.9,5.276]
[1743744410738,2.5720593,1798.1,1797.9,5.276]
[1743744411913,8.1336493,1798.1,1797.9,5.276]
[1743744412533,2.5720593,1798.1,1797.9,5.276]
[1743744414920,13.23003781,1798.3,1798.0,5.56173]
[1743744415120,18.79106781,1798.3,1797.9,12.557441]
[1743744415421,5.56117,1798.2,1797.9,6.995521]
[1743744416113,2.5720593,1798.1,1797.9,5.276]
[1743744416516,8.1335093,1798.1,1797.9,5.276]
[1743744417616,8.1335093,1798.1,1797.8,6.35699]
[1743744417824,2.5720593,1798.1,1797.8,11.63099]
[1743744420126,2.5720593,1798.1,1797.8,17.19316]
[1743744420326,2.5720593,1798.1,1797.8,13.350286]
[1743744421626,8.1334793,1798.1,1797.8,13.350286]
[1743744421827,2.5720593,1798.1,1797.8,18.912506]
[1743744422026,8.1334893,1798.1,1797.8,13.350286]
[1743744422236,5.56143,1798.1,1797.8,13.350286]
[1743744422410,5.56117,1798.2,1797.8,18.912466]
[1743744423306,5.56117,1798.2,1797.9,1.58991696]
[1743744423650,11.1225,1798.2,1797.9,1.58991696]
[1743744426312,5.56117,1798.2,1797.9,1.58991696]
[1743744426500,11.12249,1798.2,1797.9,1.58991696]
[1743744426701,5.56117,1798.2,1797.9,1.58991696]
[1743744427533,5.56117,1798.2,1797.9,7.15194696]
[1743744428502,13.23003781,1798.3,1797.9,12.71382696]
[1743744428704,13.23003781,1798.3,1798.0,7.0512847]
[1743744429751,13.23003781,1798.3,1798.0,1.4895947]
[1743744429950,13.23003781,1798.3,1798.0,7.0513047]
[1743744430253,3.0,1798.4,1798.0,1.4895947]
[1743744430455,13.6926693,1798.5,1798.2,0.7744]
[1743744430456,8.1322593,1798.5,1798.2,0.7744]
[1743744430602,2.5720593,1798.5,1798.2,11.60949]
[1743744430809,5.55991,1798.6,1798.2,17.1705]
[1743744431119,13.22882781,1798.7,1798.3,5.56066]
[1743744431328,7.66917781,1798.7,1798.2,11.60946]
[1743744431523,5.56005,1798.6,1798.2,13.326544]
[1743744431965,5.56005,1798.6,1798.2,18.887504]
[1743744432114,5.56005,1798.6,1798.3,5.56074]
[1743744432310,5.56005,1798.6,1798.2,13.326444]
[1743744432527,11.12015,1798.6,1798.2,13.326444]
[1743744432719,5.56005,1798.6,1798.3,1.3326444]
[1743744433430,11.12015,1798.6,1798.3,1.3326444]
[1743744433726,5.56005,1798.6,1798.3,1.3326444]
[1743744434231,5.56023,1798.5,1798.3,1.3326444]
[1743744434734,5.56005,1798.6,1798.3,1.3326444]
[1743744434908,13.22876781,1798.7,1798.3,1.3326444]
[1743744435107,5.5599,1798.6,1798.3,6.8933444]
[1743744435302,11.12002,1798.6,1798.3,1.3326444]
[1743744436011,11.12002,1798.6,1798.2,11.60933]
[1743744436311,8.1324093,1798.5,1798.2,6.0484]
[1743744436539,8.1324093,1798.5,1798.2,11.6095]
[1743744438047,8.1324093,1798.5,1798.2,6.0484]
[1743744438207,8.1328593,1798.3,1798.1,5.273]
[1743744440645,13.6938393,1798.3,1798.1,5.273]
[1743744440808,8.1328593,1798.3,1798.1,5.273]
[1743744441008,5.5608,1798.3,1798.1,5.273]
[1743744441214,5.56054,1798.4,1798.1,5.273]
[1743744441414,11.12125,1798.4,1798.1,5.273]
[1743744441770,5.56084,1798.3,1798.1,5.273]
[1743744442137,8.0828993,1798.3,1798.1,5.273]
[1743744443149,2.5720593,1798.3,1798.1,5.273]
[1743744443351,8.1322993,1798.5,1798.1,12.551317]
[1743744443846,13.6926793,1798.5,1798.1,12.551317]
[1743744444644,5.5605,1798.4,1798.1,12.551317]
[1743744444849,5.09711851,1798.7,1798.4,5.56033]
[1743744445051,5.09711851,1798.7,1798.5,0.7876]
[1743744445231,8.8215393,1798.9,1798.5,11.6206]
[1743744445232,8.1310393,1798.9,1798.5,11.6206]
[1743744445549,5.55898,1798.9,1798.5,11.6206]
[1743744445751,11.11814,1798.9,1798.5,11.6206]
[1743744445946,13.6908593,1798.8,1798.5,6.0606]
[1743744446151,13.6908593,1798.8,1798.5,7.09673296]
[1743744446349,5.55959,1798.7,1798.5,7.09673296]
[1743744446916,5.55987,1798.6,1798.4,0.556033]
[1743744447120,2.5720593,1798.6,1798.5,5.273]
[1743744447515,5.56022,1798.5,1798.3,0.7876]
[1743744447753,8.1325493,1798.4,1798.2,5.273]
[1743744447955,5.5608,1798.3,1798.2,5.273]
[1743744448148,5.5612,1798.2,1798.0,5.273]
[1743744448453,8.1332593,1798.2,1798.0,5.87906]
[1743744448653,13.6945693,1798.2,1798.0,5.87906]
[1743744448950,8.1332593,1798.2,1798.0,5.87906]
[1743744449825,13.6946293,1798.2,1797.8,48.94722]
[1743744450018,8.1332593,1798.2,1797.9,5.273]
[1743744450442,5.56144,1798.1,1797.9,5.273]
[1743744451136,5.56144,1798.1,1797.8,48.94722]
[1743744451338,5.56144,1798.1,1797.8,54.22022]
[1743744451556,5.56144,1798.1,1797.8,48.658]
[1743744451847,8.1339193,1798.0,1797.8,48.658]
[1743744452056,13.6958493,1798.0,1797.8,48.658]
[1743744452358,8.1339193,1798.0,1797.8,48.658]
[1743744452651,13.6958793,1798.0,1797.8,5.273]
[1743744452852,8.1339193,1798.0,1797.8,5.273]
[1743744453158,5.56204,1797.9,1797.8,5.273]
[1743744453659,8.1338093,1798.0,1797.8,5.273]
[1743744454432,13.6958193,1798.0,1797.8,5.273]
[1743744454646,8.1338093,1798.0,1797.8,5.273]
[1743744455258,5.56204,1797.9,1797.7,5.273]
[1743744455426,5.56204,1797.9,1797.7,6.35658]
[1743744457149,5.56204,1797.9,1797.7,5.273]
[1743744457547,11.12428,1797.9,1797.7,5.273]
[1743744457929,5.56204,1797.9,1797.7,5.273]
[1743744458331,2.5720593,1798.0,1797.7,10.83554]
[1743744458633,6.25196,1798.1,1797.7,16.45364131]
[1743744458958,13.65825851,1798.2,1797.9,5.56203]
[1743744460368,13.65825851,1798.2,1797.8,13.59164413]
[1743744460965,19.21956851,1798.2,1797.8,8.02930413]
[1743744461167,5.56144,1798.1,1797.8,8.02930413]
[1743744461775,13.65825851,1798.2,1797.8,13.59151413]
[1743744461953,13.65825851,1798.2,1797.9,1.35915141]
[1743744462136,8.1335893,1798.1,1797.8,0.8217]
[1743744462669,19.91012851,1798.2,1797.8,6.43965805]
[1743744462840,16.23031781,1798.2,1797.9,5.56194]
[1743744463258,5.09711851,1798.2,1798.1,6.38312]
[1743744463466,5.09711851,1798.2,1798.1,12.85616549]
[1743744464371,5.56051,1798.4,1798.1,12.85616549]
[1743744465442,5.56051,1798.4,1798.1,7.29474549]
[1743744465839,5.56051,1798.4,1798.1,12.85616549]
[1743744467068,3.0,1798.4,1798.1,12.85616549]
[1743744467271,5.5720593,1798.5,1798.2,6.90223526]
[1743744467438,5.5720593,1798.5,1798.2,6.84657655]
[1743744467839,5.5720593,1798.5,1798.2,1.28561655]
[1743744467840,11.1322493,1798.5,1798.2,1.28561655]
[1743744468067,5.56066,1798.4,1798.2,1.28561655]
[1743744468243,11.1214,1798.4,1798.2,1.28561655]
[1743744468445,11.1214,1798.4,1798.1,6.0947]
[1743744468672,11.8119,1798.4,1798.1,6.0947]
[1743744468965,6.25116,1798.4,1798.1,6.0947]
[1743744469851,11.81184,1798.4,1798.1,6.0947]
[1743744470875,6.25116,1798.4,1798.1,6.0947]
[1743744471063,11.81186,1798.4,1798.1,6.0947]
[1743744471242,2.5720593,1798.3,1798.1,6.493625]
[1743744471789,2.5720593,1798.3,1798.1,12.054905]
[1743744471984,8.1322693,1798.5,1798.1,12.876605]
[1743744472147,8.1322693,1798.5,1798.2,5.5611]
[1743744472349,13.6926393,1798.5,1798.1,12.876605]
[1743744472878,8.1322693,1798.5,1798.2,1.2876605]
[1743744473289,5.56059,1798.4,1798.2,1.2876605]
[1743744473490,5.56059,1798.4,1798.1,7.315325]
[1743744473865,8.1328793,1798.3,1798.1,1.220625]
[1743744474099,8.8233793,1798.3,1798.1,5.273]
[1743744478405,5.56185,1798.0,1797.7,6.35716]
[1743744478701,5.56185,1798.0,1797.8,5.273]
[1743744479896,3.2625593,1798.1,1797.8,10.83517]
[1743744480102,2.5720593,1798.3,1798.0,0.7946]
[1743744480413,2.5720593,1798.3,1798.0,11.91777]
[1743744480699,13.6926493,1798.5,1798.1,6.753047]
[1743744481297,5.5605,1798.4,1798.2,5.273]
[1743744482114,8.1322693,1798.5,1798.2,5.273]
[1743744482316,13.6926393,1798.5,1798.2,5.273]
[1743744482616,8.1322693,1798.5,1798.2,5.273]
[1743744482817,8.1322693,1798.5,1798.2,10.8341]
[1743744482967,8.1322693,1798.5,1798.2,12.5928147]
[1743744483784,5.09711851,1798.6,1798.4,0.7946]
[1743744483979,5.55929,1798.8,1798.4,6.3549]
[1743744484198,11.34627851,1799.0,1798.5,5.56005]
[1743744484405,5.09711851,1799.0,1798.8,5.55922]
[1743744484899,5.55806,1799.2,1798.8,5.55922]
[1743744485075,5.55774,1799.3,1798.9,5.55894]
[1743744485270,5.55774,1799.3,1799.0,0.7946]
[1743744485271,2.5720593,1799.3,1799.0,0.7946]
[1743744485468,5.55802,1799.2,1799.1,5.273]
[1743744488005,5.55876,1799.0,1798.9,5.272]
[1743744488206,8.1308193,1799.0,1798.9,5.272]
[1743744488784,8.8209793,1799.1,1798.9,5.272]
[1743744489089,5.55864,1799.0,1798.9,5.272]
[1743744490577,5.55806,1799.2,1799.0,0.7548]
[1743744490792,3.0,1799.2,1799.0,1.35748]
[1743744492109,8.55806,1799.2,1799.0,1.35748]
[1743744492480,3.0,1799.2,1799.0,1.35748]
[1743744496822,3.0,1799.2,1799.0,1.41306082]
[1743744497792,3.0,1799.2,1799.0,1.35748]
[1743744498427,8.55808,1799.2,1799.0,1.35748]
[1743744498626,2.5720593,1799.3,1799.0,1.35748]
[1743744498782,10.65462851,1799.4,1799.0,6.97158081]
[1743744498983,10.65462851,1799.4,1799.1,0.69715808]
[1743744499186,8.09711851,1799.4,1799.1,0.69715808]
[1743744499429,5.09711851,1799.4,1799.1,6.25534808]